bitfinex-derivatives/quotes_ETHF0:USTF0_20250917
["timestamp","ask_amount","ask_price","bid_price","bid_amount"]
[1758129665135,1.45899344,4479.8,4479.7,0.7136]
[1758129666335,0.9149,4479.8,4479.7,0.7136]
[1758129668138,0.6221,4479.8,4479.7,0.7136]
[1758129668439,0.195,4479.8,4479.7,0.7136]
[1758129668937,0.4875,4479.8,4479.7,0.7136]
[1758129669937,0.195,4479.8,4479.7,0.7136]
[1758129670839,0.4875,4479.8,4479.7,0.7136]
[1758129671441,0.195,4479.8,4479.7,0.7136]
[1758129674138,0.7389983,4479.8,4479.7,0.7136]
[1758129674539,1.2260983,4479.8,4479.5,0.1785]
[1758129674749,0.6945,4479.6,4479.5,0.1785]
[1758129674945,0.6945,4479.6,4479.5,0.6945]
[1758129675146,0.6945,4479.6,4479.5,0.8919]
[1758129675537,0.6945,4479.6,4479.5,1.0165]
[1758129675748,0.402,4479.6,4479.5,1.0165]
[1758129675942,0.2074,4479.6,4479.5,1.0165]
[1758129677547,0.2074,4479.6,4479.5,0.838]
[1758129680646,3.2078,4479.7,4479.6,0.7134]
[1758129680840,3.7520617,4479.7,4479.6,0.7134]
[1758129681046,4.6725617,4479.7,4479.4,0.3078]
[1758129681348,0.8027,4479.5,4479.4,0.3078]
[1758129681547,1.3469617,4479.5,4479.4,0.4863]
[1758129682748,1.3469617,4479.5,4479.4,0.1785]
[1758129683246,1.5729617,4479.5,4479.4,0.1785]
[1758129683946,1.0287,4479.5,4479.4,0.1785]
[1758129684345,0.9205,4479.5,4479.4,0.516]
[1758129689247,0.9205,4479.5,4479.4,0.7134]
[1758129691251,0.9205,4479.5,4479.4,0.516]
[1758129691454,1.0287,4479.5,4479.3,0.0223]
[1758129691650,1.25194001,4479.5,4479.3,0.0223]
[1758129691951,1.23792743,4479.4,4479.3,0.0223]
[1758129692453,1.23792743,4479.4,4479.1,0.02232616]
[1758129692651,0.226,4479.3,4479.1,0.02232616]
[1758129693054,0.6945,4479.2,4479.1,0.02232616]
[1758129694450,0.6945,4479.2,4479.1,0.33012616]
[1758129698059,0.6945,4479.2,4479.1,0.53832616]
[1758129698760,3.9023,4479.2,4479.1,0.53832616]
[1758129699855,3.9023,4479.2,4479.1,0.33012616]
[1758129700050,3.9023,4479.2,4479.1,0.02232616]
[1758129700658,0.2544,4479.1,4477.7,0.2982]
[1758129700859,3.8722,4478.4,4478.3,0.498]
[1758129703064,4.0982,4478.4,4478.3,0.498]
[1758129703255,3.8722,4478.4,4478.3,0.498]
[1758129703656,4.0982,4478.4,4478.3,0.498]
[1758129704461,3.6178,4478.4,4478.3,0.7054]
[1758129704759,3.8438,4478.4,4478.3,0.7054]
[1758129708365,4.0982,4478.4,4478.3,0.7054]
[1758129715169,4.0982,4478.4,4478.3,0.2982]
[1758129716263,4.0982,4478.4,4478.0,0.1228]
[1758129716466,4.0982,4478.4,4477.6,3.2078]
[1758129716467,4.0982,4478.4,4477.5,0.1246]
[1758129716669,0.41,4477.3,4477.2,0.662]
[1758129716970,0.6644,4477.3,4477.2,0.88535]
[1758129717167,0.41,4477.3,4477.2,1.09275]
[1758129717768,0.41,4477.3,4477.2,0.8694]
[1758129718860,0.41,4477.3,4477.2,1.27126]
[1758129719065,0.41,4477.3,4477.2,0.8694]
[1758129719465,0.1959,4477.3,4477.2,0.8694]
[1758129720173,0.1959,4477.3,4477.2,1.27126]
[1758129720367,0.1959,4477.3,4477.2,0.8694]
[1758129720972,0.1959,4477.3,4477.2,1.27126]
[1758129721467,0.6428,4477.8,4477.7,0.4987]
[1758129721773,0.8974,4477.8,4477.7,0.4987]
[1758129723969,0.6714,4477.8,4477.7,0.4987]
[1758129724173,0.8974,4477.8,4477.7,0.4987]
[1758129725279,0.8974,4477.8,4477.5,0.1203]
[1758129725472,0.6428,4477.8,4477.2,0.2907]
[1758129725674,0.6714,4477.3,4477.2,0.4987]
[1758129727785,0.6714,4477.3,4477.2,0.2907]
[1758129728673,0.6714,4477.3,4477.2,0.4878]
[1758129729079,0.6714,4477.3,4477.2,0.2907]
[1758129730487,0.4168,4477.3,4477.1,0.3217]
[1758129730785,0.8803,4477.2,4477.1,0.3217]
[1758129732789,0.8803,4477.2,4477.1,0.3217]
[1758129737894,0.8803,4477.2,4477.1,0.5188]
[1758129738293,3.2078,4477.4,4477.2,0.3217]
[1758129738494,0.4275,4477.3,4477.2,0.7253]
[1758129738696,0.6259,4477.3,4477.2,0.7253]
[1758129739089,0.2015,4478.1,4478.0,0.1286]
[1758129739290,0.2544,4478.8,4478.0,4.0617]
[1758129739496,0.6259,4478.7,4478.6,0.7253]
[1758129739992,0.8803,4478.7,4478.6,0.7253]
[1758129740494,0.6259,4478.7,4478.6,0.7253]
[1758129740792,0.2544,4479.4,4478.7,0.3217]
[1758129740988,1.42209877,4479.3,4479.2,0.5188]
[1758129741294,1.42209877,4479.3,4479.2,0.3217]
[1758129741295,0.8803,4479.3,4479.2,0.3217]
[1758129741496,1.42196425,4479.3,4479.0,0.1286]
[1758129741787,0.6543,4479.1,4478.5,0.1286]
[1758129741993,0.226,4479.0,4478.5,0.1286]
[1758129742193,0.8803,4479.0,4478.9,0.5188]
[1758129743696,0.6259,4479.0,4478.9,0.7253]
[1758129744296,0.4275,4479.0,4478.9,0.7253]
[1758129744498,0.6259,4479.0,4478.9,0.7253]
[1758129744695,0.8803,4479.0,4478.9,0.7253]
[1758129744888,0.6259,4479.0,4478.9,0.7253]
[1758129745905,0.226,4479.0,4478.9,0.7253]
[1758129746598,0.4275,4479.0,4478.9,0.7253]
[1758129746801,0.2015,4479.0,4478.9,0.7253]
[1758129747000,0.4275,4479.0,4478.9,0.7253]
[1758129748304,0.2015,4479.0,4478.9,0.7253]
[1758129748496,0.2015,4479.0,4478.8,0.40172]
[1758129748497,3.6077,4479.6,4479.5,0.6474]
[1758129748696,3.6077,4479.6,4479.5,0.8539]
[1758129748697,3.8337,4479.6,4479.5,0.8539]
[1758129748898,4.31134001,4479.6,4479.5,0.8539]
[1758129749097,4.0881,4479.6,4479.5,0.6474]
[1758129749695,4.0881,4479.6,4479.0,0.1286]
[1758129749696,3.8337,4479.6,4479.0,0.4503]
[1758129749897,0.6543,4479.1,4479.0,0.3257]
[1758129750093,0.2015,4479.1,4479.0,0.5322]
[1758129750298,0.226,4479.1,4479.0,0.5322]
[1758129750495,3.4622,4479.6,4479.0,0.8539]
[1758129750701,0.8803,4479.5,4479.4,0.5188]
[1758129751802,0.6543,4479.5,4479.4,0.5188]
[1758129751998,3.4338,4479.6,4479.5,0.8539]
[1758129752203,3.4338,4479.6,4479.5,1.25555]
[1758129752708,0.226,4479.6,4479.5,1.25555]
[1758129753202,0.2015,4480.1,4480.0,0.6568]
[1758129753402,0.4275,4480.1,4480.0,0.8539]
[1758129753708,0.8803,4480.1,4480.0,0.8539]
[1758129754307,3.2078,4480.2,4480.1,0.7253]
[1758129754794,0.2544,4480.9,4480.0,0.1286]
[1758129754795,3.2078,4480.9,4480.5,0.1286]
[1758129755001,3.4093,4480.9,4480.8,0.7253]
[1758129755197,3.6353,4480.9,4480.8,0.7253]
[1758129755401,3.8337,4480.9,4480.8,0.7253]
[1758129755600,4.0881,4480.9,4480.8,0.7253]
[1758129756109,3.6077,4480.9,4480.8,0.7253]
[1758129756309,3.8337,4480.9,4480.8,0.7253]
[1758129756606,0.2015,4480.9,4480.8,0.7253]
[1758129756806,36.183,4481.5,4480.8,0.7253]
[1758129756807,3.4191,4481.6,4481.5,0.4383]
[1758129757108,3.6451,4481.6,4481.5,0.8392]
[1758129757510,3.8561,4481.6,4481.5,0.8392]
[1758129759409,4.1107,4481.6,4481.5,0.8392]
[1758129759805,3.8561,4481.6,4481.5,0.8392]
[1758129760008,4.1107,4481.6,4481.5,0.5208]
[1758129760203,4.1107,4481.6,4481.5,0.3194]
[1758129760612,4.1107,4481.6,4481.5,0.5208]
[1758129760800,0.2113,4481.6,4481.5,0.8392]
[1758129761005,0.4373,4481.6,4481.5,0.5198]
[1758129761314,0.9029,4481.6,4481.5,0.2014]
[1758129761511,0.9029,4481.6,4481.5,0.6397]
[1758129761805,0.6483,4481.6,4481.5,0.8392]
[1758129762413,0.4223,4481.3,4481.2,0.5208]
[1758129762607,0.9029,4481.3,4481.2,0.5208]
[1758129763015,0.9029,4481.3,4481.2,0.3194]
[1758129763209,0.6769,4480.7,4480.6,0.7203]
[1758129763812,0.2113,4480.7,4480.6,0.7203]
[1758129764010,3.316,4481.5,4480.6,0.4009]
[1758129764011,0.2546,4481.3,4480.6,0.4009]
[1758129764315,0.226,4481.2,4481.1,0.3194]
[1758129764515,0.9029,4481.2,4481.1,0.5208]
[1758129764904,0.9029,4481.2,4481.1,0.3194]
[1758129767017,0.9029,4481.2,4481.1,0.5208]
[1758129767318,0.6483,4481.2,4481.1,0.5208]
[1758129767616,0.6483,4481.2,4481.1,0.7203]
[1758129768317,0.9029,4481.2,4481.1,0.3194]
[1758129768514,0.9029,4481.2,4480.8,0.3194]
[1758129768719,0.6769,4480.8,4480.7,0.1785]
[1758129768922,0.6769,4480.8,4480.7,0.3799]
[1758129769111,0.6769,4480.8,4480.7,0.6993]
[1758129769313,0.4223,4480.8,4480.7,0.8988]
[1758129770512,0.6769,4480.8,4480.7,0.8988]
[1758129770915,0.4223,4480.8,4480.7,0.7203]
[1758129771522,0.6769,4480.8,4480.7,0.5208]
[1758129773422,0.4223,4480.8,4480.7,0.7203]
[1758129773816,0.6769,4480.8,4480.7,0.7203]
[1758129774021,0.6769,4480.8,4480.7,0.3194]
[1758129774321,0.6769,4480.8,4480.7,0.5208]
[1758129776627,0.6769,4480.8,4480.7,0.7203]
[1758129777522,0.9019,4480.8,4480.7,0.7203]
[1758129778032,0.9019,4480.8,4480.7,0.3194]
[1758129778231,0.9019,4480.8,4480.5,0.3016]
[1758129778532,0.2548,4480.7,4480.5,0.3016]
[1758129778732,0.6759,4480.6,4480.5,0.6329]
[1758129779830,0.4211,4480.6,4480.5,0.8295]
[1758129780030,0.225,4480.8,4480.5,0.8295]
[1758129780231,0.75320429,4480.7,4480.6,0.3016]
[1758129780434,0.75320429,4480.7,4480.6,0.7009]
[1758129780829,0.53930429,4480.7,4480.6,0.7009]
[1758129781934,0.75320429,4480.7,4480.6,0.7009]
[1758129782635,0.96040429,4480.7,4480.6,0.7009]
[1758129783437,1.21520429,4480.7,4480.6,0.7009]
[1758129784835,1.21520429,4480.7,4480.6,0.3016]
[1758129785836,1.21520429,4480.7,4480.4,0.2008]
[1758129786141,0.6759,4480.5,4480.4,0.5024]
[1758129786436,1.44020429,4480.5,4480.4,0.4801]
[1758129786635,0.6759,4480.2,4480.1,0.5043]
[1758129786840,0.96040429,4480.2,4480.1,0.7009]
[1758129788642,0.75320429,4480.2,4480.1,0.7009]
[1758129789344,0.53930429,4480.2,4480.1,0.7009]
[1758129789543,0.53930429,4480.2,4480.1,0.3993]
[1758129789743,0.53930429,4480.4,4480.1,0.3993]
[1758129790145,0.74610429,4480.4,4480.3,0.3978]
[1758129790346,0.97110429,4480.4,4480.3,0.7065]
[1758129790846,1.18220429,4480.4,4480.3,0.7065]
[1758129791037,0.95720429,4480.4,4480.3,0.7065]
[1758129791342,0.97110429,4480.4,4480.3,0.7065]
[1758129791541,0.95720429,4480.4,4480.3,0.7065]
[1758129791742,1.18220429,4480.4,4480.3,0.7065]
[1758129792439,1.43600429,4480.4,4480.3,0.5081]
[1758129792642,1.43600429,4480.4,4480.3,0.7065]
[1758129792643,1.18220429,4480.4,4480.3,0.7065]
[1758129794341,1.43600429,4480.4,4480.3,0.7065]
[1758129795147,1.18220429,4480.4,4480.3,0.7065]
[1758129796243,0.95720429,4480.4,4480.3,0.7065]
[1758129796443,1.18293158,4480.4,4480.3,0.7065]
[1758129797148,0.97183158,4480.4,4480.3,0.7065]
[1758129798952,1.18293158,4480.4,4480.3,0.7065]
[1758129799152,1.43673158,4480.4,4480.3,0.7065]
[1758129801251,0.4179,4480.2,4480.1,0.3087]
[1758129801458,0.6717,4480.2,4480.1,0.3087]
[1758129801650,0.4179,4480.0,4479.9,0.0223]
[1758129801858,1.43692423,4480.0,4479.9,0.2008]
[1758129802250,1.43692423,4480.0,4479.9,0.1785]
[1758129803157,1.43692423,4480.0,4479.9,0.6866]
[1758129804357,1.18312423,4480.0,4479.9,0.885]
[1758129804557,0.95812423,4480.0,4479.9,0.885]
[1758129804760,0.95812423,4480.0,4479.9,0.7065]
[1758129805059,3.4328,4480.3,4480.2,0.7065]
[1758129805260,4.39072323,4480.3,4480.2,0.7065]
[1758129806159,4.64452323,4480.3,4480.2,0.5081]
[1758129806352,4.64452323,4480.3,4480.2,0.3087]
[1758129806552,4.64452323,4480.3,4480.2,0.5081]
[1758129808758,4.39072323,4480.3,4480.2,0.7065]
[1758129808965,4.17962323,4480.3,4480.2,0.7065]
[1758129809150,0.0589,4483.0,4480.2,0.7065]
[1758129809151,3.2078,4481.0,4480.9,0.3978]
[1758129809460,3.9730081,4481.0,4480.9,0.7065]
[1758129809756,0.4318,4481.0,4480.9,0.7065]
[1758129810153,0.6429,4481.0,4480.9,0.7065]
[1758129811047,0.4179,4481.0,4480.9,0.7065]
[1758129811250,0.6429,4481.0,4480.9,0.7065]
[1758129812860,3.2078,4481.5,4480.9,0.7065]
[1758129813167,1.18280442,4481.4,4481.3,0.7065]
[1758129813556,1.43660442,4481.4,4481.3,0.7065]
[1758129818563,1.43660442,4481.4,4481.3,0.5081]
[1758129820668,1.43660442,4481.4,4481.3,0.3087]
[1758129821270,1.43660442,4481.4,4481.0,0.1257]
[1758129821470,0.6526,4481.2,4481.1,0.3147]
[1758129821770,1.41750442,4481.2,4481.1,0.5143]
[1758129822770,5.64066442,4481.2,4480.6,0.3147]
[1758129822967,3.8604,4480.7,4480.6,0.3147]
[1758129823162,4.62530442,4480.7,4480.6,0.3147]
[1758129823863,0.3987,4480.2,4480.1,0.5143]
[1758129824970,0.3987,4480.2,4480.1,0.7124]
[1758129831970,3.6065,4480.7,4480.6,0.7124]
[1758129832174,4.62492788,4480.7,4480.6,0.5143]
[1758129832474,4.62492788,4480.7,4480.6,0.3147]
[1758129832872,4.62492788,4480.7,4480.6,0.5143]
[1758129835170,3.2078,4480.7,4480.6,0.7124]
[1758129835372,0.225,4480.9,4480.6,0.7124]
[1758129835571,0.2028,4480.8,4480.7,0.3147]
[1758129835873,0.2028,4480.8,4480.7,0.7124]
[1758129836575,0.3987,4480.8,4480.7,0.7124]
[1758129837466,0.653,4480.8,4480.7,0.5124]
[1758129838271,1.19242781,4480.8,4480.7,0.5124]
[1758129839179,0.3987,4480.8,4480.7,0.7207]
[1758129840877,3.4328,4480.9,4480.8,0.3137]
[1758129841076,3.74711582,4480.9,4480.8,0.7197]
[1758129841373,3.97211582,4480.9,4480.8,0.7197]
[1758129841776,4.38751582,4480.9,4480.8,0.7197]
[1758129841978,4.64181582,4480.9,4480.8,0.7197]
[1758129842575,4.38751582,4480.9,4480.8,0.7197]
[1758129844583,3.94961582,4480.9,4480.8,0.7197]
[1758129844883,4.38751582,4480.9,4480.8,0.7197]
[1758129847085,4.38770622,4480.9,4480.8,0.7197]
[1758129847380,3.74730622,4480.9,4480.8,0.7197]
[1758129847588,3.97230622,4480.9,4480.8,0.7197]
[1758129847783,4.17810622,4480.9,4480.8,0.7197]
[1758129848083,4.63070622,4480.9,4480.8,0.3137]
[1758129848474,4.63070622,4480.9,4480.6,0.0223]
[1758129848782,1.19790622,4480.8,4480.7,0.3082]
[1758129849285,1.19790622,4480.8,4480.7,0.5168]
[1758129859495,0.94360622,4480.8,4480.7,0.7233]
[1758129860601,1.16860622,4480.8,4480.7,0.7233]
[1758129861095,1.42290622,4480.8,4480.7,0.7233]
[1758129862902,1.19790622,4480.8,4480.7,0.7233]
[1758129863200,1.16860622,4480.8,4480.7,0.7233]
[1758129863699,0.94360622,4480.8,4480.7,0.7233]
[1758129863901,1.16860622,4480.8,4480.7,0.7233]
[1758129868001,1.42290622,4480.8,4480.7,0.7233]
[1758129869105,1.16860622,4480.8,4480.7,0.7233]
[1758129869398,0.97030622,4480.8,4480.7,0.7233]
[1758129871703,0.53950622,4480.8,4480.7,1.12485]
[1758129871902,0.76450622,4480.8,4480.7,1.12485]
[1758129872299,0.225,4480.8,4480.7,1.12485]
[1758129872496,0.225,4480.9,4480.7,1.12485]
[1758129872698,0.225,4480.9,4480.7,0.4151]
[1758129872899,0.225,4480.9,4480.8,0.7233]
[1758129873300,0.7644997,4480.9,4480.8,0.7233]
[1758129874105,0.225,4480.9,4480.8,0.7233]
[1758129882800,0.6297,4480.9,4480.8,0.7233]
[1758129883005,4.63031235,4480.9,4480.7,0.3053]
[1758129883203,1.19751235,4480.8,4480.7,0.5097]
[1758129883406,1.16881235,4480.8,4480.7,0.7209]
[1758129884322,0.94381235,4480.8,4480.7,0.7209]
[1758129884817,1.16881235,4480.8,4480.7,0.7209]
[1758129885017,0.94381235,4480.8,4480.7,0.7209]
[1758129885516,0.74171235,4480.8,4480.7,0.7209]
[1758129886017,0.53911235,4480.8,4480.7,0.7209]
[1758129888723,0.74171235,4480.8,4480.7,0.7209]
[1758129889224,0.94381235,4480.8,4480.7,0.7209]
[1758129889425,1.19751235,4480.8,4480.7,0.7209]
[1758129890423,1.19751235,4480.8,4480.7,0.5097]
[1758129890625,0.74171235,4480.8,4480.7,0.7209]
[1758129890823,0.96671235,4480.8,4480.7,0.7209]
[1758129891121,1.16881235,4480.8,4480.7,0.7209]
[1758129891319,1.42251235,4480.8,4480.7,0.3053]
[1758129891624,1.42251235,4480.8,4480.7,0.5097]
[1758129891923,1.42251235,4480.8,4480.7,0.3053]
[1758129892722,0.8834,4480.8,4480.7,0.3053]
[1758129892923,1.4226497,4480.8,4480.7,0.3053]
[1758129894927,1.1689497,4480.8,4480.7,0.7209]
[1758129895319,0.5392497,4480.8,4480.7,0.7209]
[1758129895625,0.9668497,4480.8,4480.7,0.7209]
[1758129901031,0.7642497,4480.8,4480.7,0.7209]
[1758129901528,0.9777497,4480.8,4480.7,0.7209]
[1758129902628,0.7527497,4480.8,4480.7,0.7209]
[1758129902830,0.9777497,4480.8,4480.7,0.7209]
[1758129905728,0.7642497,4480.8,4480.7,0.7209]
[1758129906830,0.7527497,4480.8,4480.7,0.7209]
[1758129907030,0.9777497,4480.8,4480.7,0.7209]
[1758129908029,1.1808497,4480.8,4480.7,0.7209]
[1758129908429,1.4347497,4480.8,4480.7,0.7209]
[1758129909033,1.1808497,4480.8,4480.7,0.7209]
[1758129910731,1.4347497,4480.8,4480.7,0.7209]
[1758129913134,0.6596,4480.6,4480.5,0.2008]
[1758129913339,1.42488496,4480.6,4480.5,0.2008]
[1758129913541,1.42488496,4480.6,4480.1,0.3087]
[1758129913728,0.4057,4480.2,4480.1,0.7204]
[1758129913925,1.17098496,4480.2,4480.1,0.7204]
[1758129914236,0.6307,4480.2,4480.1,0.7204]
[1758129915534,0.4057,4480.2,4480.1,0.7204]
[1758129921329,0.2026,4480.2,4480.1,0.7204]
[1758129922340,0.6596,4480.2,4480.1,0.7204]
[1758129923642,1.19986374,4480.2,4480.1,0.7204]
[1758129924038,0.94596374,4480.2,4480.1,0.7204]
[1758129925348,1.19986374,4480.2,4480.1,0.5171]
[1758129926341,1.19986374,4480.2,4480.1,0.3087]
[1758129928048,0.6596,4480.0,4479.9,0.5095]
[1758129928240,1.42486374,4480.0,4479.9,0.5095]
[1758129928444,1.42486374,4480.0,4479.9,0.3087]
[1758129931450,5.70868375,4480.0,4479.7,0.2008]
[1758129931743,3.8674,4479.8,4479.7,0.2008]
[1758129931945,4.40766374,4479.8,4479.7,0.2008]
[1758129932145,4.40766374,4479.8,4479.7,0.5095]
[1758129932539,4.40766374,4479.8,4479.7,0.2008]
[1758129933743,4.58895933,4479.8,4479.7,0.5095]
[1758129935847,0.4276,4479.2,4479.1,0.7204]
[1758129938548,0.96666527,4479.2,4479.1,0.7204]
[1758129939549,0.4276,4479.2,4479.1,0.7204]
[1758129941457,0.9665505,4479.2,4479.1,0.7204]
[1758129943349,1.1749505,4479.2,4479.1,0.7204]
[1758129943550,0.9499505,4479.2,4479.1,0.7204]
[1758129943845,1.1749505,4479.2,4479.1,0.7204]
[1758129945951,1.4291505,4479.2,4479.1,0.7204]
[1758129946161,1.4291505,4479.2,4479.0,0.3143]
[1758129946359,0.6665,4479.0,4478.9,0.5152]
[1758129946662,1.2643505,4479.0,4478.9,0.2009]
[1758129946859,1.2643505,4479.0,4478.9,0.0223]
[1758129947060,1.2054505,4479.0,4478.6,0.3143]
[1758129947261,0.6665,4478.7,4478.6,0.5123]
[1758129947460,0.8915,4478.7,4478.6,0.5123]
[1758129950165,0.8915,4478.7,4478.6,0.3143]
[1758129950572,0.8915,4478.7,4478.6,0.5123]
[1758129950872,0.6373,4478.7,4478.6,0.714]
[1758129951570,1.43014255,4478.7,4478.4,0.0223]
[1758129951771,0.693,4478.5,4478.4,0.0223]
[1758129951967,0.693,4478.5,4477.9,0.3143]
[1758129951968,1.23164255,4478.5,4477.9,0.3143]
[1758129952170,0.6442,4477.7,4477.6,0.3143]
[1758129952371,0.8692,4477.7,4477.6,0.3143]
[1758129952776,1.40761448,4477.7,4477.6,0.3143]
[1758129954276,1.40761448,4477.7,4477.6,0.5123]
[1758129957072,1.40761448,4477.7,4477.6,0.3143]
[1758129957775,1.40761448,4477.7,4477.6,0.5132]
[1758129958668,4.61541448,4477.7,4477.6,0.5132]
[1758129960376,4.61541448,4477.7,4477.6,0.3143]
[1758129960677,4.38351448,4477.7,4477.5,0.3192]
[1758129960878,1.17841448,4477.6,4477.5,0.3192]
[1758129961676,0.64,4477.6,4477.5,0.5181]
[1758129961874,0.64,4477.6,4477.5,0.6361]
[1758129964376,0.4079,4477.6,4477.5,0.6361]
[1758129964575,0.64,4477.6,4477.5,0.6361]
[1758129965676,0.64,4477.6,4477.5,0.4372]
[1758129965882,0.64,4477.6,4477.5,0.3192]
[1758129966275,0.64,4477.6,4477.3,0.1786]
[1758129966576,0.64,4477.4,4476.9,0.3192]
[1758129966773,0.76314237,4477.5,4476.8,0.0223]
[1758129966774,0.64,4476.9,4476.8,0.0223]
[1758129966974,1.40314237,4476.9,4476.8,0.0223]
[1758129967370,1.40314237,4476.9,4476.5,0.3012]
[1758129967371,42.20314237,4476.9,4476.1,0.3012]
[1758129967574,42.20314237,4476.9,4475.6,3.2078]
[1758129967575,3.6112,4476.6,4476.5,0.6412]
[1758129967779,4.60654237,4476.6,4476.5,0.6412]
[1758129968481,4.37434237,4476.6,4476.5,0.8469]
[1758129969074,4.14934237,4476.6,4476.5,0.8469]
[1758129969380,3.8362,4476.6,4476.5,0.8469]
[1758129972375,4.0684,4476.6,4476.5,0.8469]
[1758129973077,3.8362,4476.6,4476.5,0.8469]
[1758129974180,4.0684,4476.6,4476.5,0.8469]
[1758129974380,4.0684,4476.6,4476.5,0.6412]
[1758129974582,3.8434,4476.6,4476.5,0.6412]
[1758129974785,4.0684,4476.6,4476.5,0.6412]
[1758129975280,4.60590329,4476.6,4476.5,0.6412]
[1758129976181,4.38090329,4476.6,4476.5,0.6412]
[1758129976482,4.60590329,4476.6,4476.5,0.3012]
[1758129977982,4.37370329,4476.6,4475.8,0.0223]
[1758129978184,0.6356,4476.1,4475.8,0.0223]
[1758129978481,0.4034,4475.9,4475.8,0.2339]
[1758129978785,0.6284,4475.9,4475.8,0.5128]
[1758129978980,0.6284,4475.9,4475.8,0.7185]
[1758129979377,0.225,4475.9,4475.8,0.7185]
[1758129979583,0.4328,4475.9,4475.8,0.7185]
[1758129979781,0.8606,4475.9,4475.8,0.5128]
[1758129980184,0.6284,4475.9,4475.8,0.7185]
[1758129982878,3.8434,4476.6,4476.5,0.6412]
[1758129983080,4.60613121,4476.6,4476.5,0.3012]
[1758129983781,4.60613121,4476.6,4476.0,0.1284]
[1758129983987,0.4034,4476.1,4475.6,3.2078]
[1758129984180,0.2078,4475.7,4475.6,3.6251]
[1758129984576,0.225,4476.0,4475.6,3.9263]
[1758129984781,0.225,4476.0,4475.9,0.7185]
[1758129987389,0.4328,4476.0,4475.9,0.7185]
[1758129987688,0.6284,4476.0,4475.9,0.7185]
[1758129987880,0.8606,4476.0,4475.9,0.7185]
[1758129988781,0.6284,4476.0,4475.9,0.7185]
[1758129989289,0.225,4476.0,4475.9,0.7185]
[1758129991085,3.2078,4476.6,4476.5,0.8469]
[1758129991888,3.4156,4476.6,4476.5,0.8469]
[1758129992284,3.2078,4476.6,4476.5,0.8469]
[1758129992892,3.4328,4476.6,4476.5,0.8469]
[1758129993991,3.2078,4476.6,4476.5,0.8469]
[1758129994181,3.74525105,4476.6,4476.5,0.8469]
[1758129996491,0.53745105,4476.6,4476.5,0.8469]
[1758130004298,0.225,4477.0,4476.5,0.8469]
[1758130004299,0.8725,4477.0,4476.9,0.2148]
[1758130004500,1.41028631,4477.0,4476.9,0.5325]
[1758130004797,1.17818631,4477.0,4476.9,0.7367]
[1758130005195,0.95318631,4477.0,4476.9,0.7367]
[1758130005398,3.2078,4477.2,4477.1,0.7367]
[1758130005595,39.4058,4477.8,4477.5,0.126]
[1758130005799,3.2078,4477.8,4477.7,0.7367]
[1758130007402,3.4104,4477.8,4477.7,0.7367]
[1758130007904,3.2078,4477.8,4477.7,0.7367]
[1758130008696,3.2078,4478.3,4478.2,0.7367]
[1758130009094,3.4104,4478.3,4478.2,0.7367]
[1758130009500,3.6354,4478.3,4478.2,0.7367]
[1758130010100,3.8482,4478.3,4478.2,0.7367]
[1758130010405,4.0803,4478.3,4478.2,0.7367]
[1758130014507,3.8482,4478.3,4478.2,0.7367]
[1758130016104,4.0803,4478.3,4478.2,0.7367]
[1758130016298,4.0803,4478.3,4478.2,0.5325]
[1758130016709,4.0803,4478.3,4478.2,0.3177]
[1758130017509,4.0803,4478.3,4478.2,0.5325]
[1758130021107,0.2321,4478.2,4477.5,0.126]
[1758130021312,0.6405,4477.6,4477.5,0.327]
[1758130021706,0.6405,4477.6,4477.5,0.6438]
[1758130022309,0.4084,4477.6,4477.5,0.8401]
[1758130023513,0.6405,4477.6,4477.5,0.8401]
[1758130023816,0.6405,4477.6,4477.5,0.3168]
[1758130024216,0.4084,4477.2,4477.1,0.4954]
[1758130024517,0.6405,4477.2,4477.1,0.4954]
[1758130024718,0.6405,4477.2,4477.1,0.3168]
[1758130025519,0.6405,4477.2,4477.1,0.5178]
[1758130026613,0.225,4477.4,4477.1,0.7141]
[1758130026817,3.2078,4478.3,4478.1,0.2136]
[1758130027012,0.4392,4478.2,4478.1,0.7425]
[1758130027318,0.6474,4478.2,4478.1,0.7425]
[1758130027519,0.8794,4478.2,4478.1,0.5283]
[1758130027717,0.8794,4478.2,4478.1,0.3147]
[1758130029320,0.4392,4478.2,4478.1,0.7425]
[1758130029915,0.225,4478.2,4478.1,0.7425]
[1758130030115,0.4224,4478.6,4478.5,0.341]
[1758130030316,0.8794,4478.6,4478.5,0.6557]
[1758130030822,0.6474,4478.6,4478.5,0.6557]
[1758130031017,0.6474,4478.6,4478.5,0.8699]
[1758130031221,0.4224,4478.6,4478.5,0.8699]
[1758130031522,0.6474,4478.6,4478.5,0.8699]
[1758130031715,0.4224,4478.6,4478.5,0.8699]
[1758130031917,0.6474,4478.6,4478.5,0.8699]
[1758130032328,0.6544,4479.2,4479.1,0.5283]
[1758130032521,1.41736962,4479.2,4479.1,0.3147]
[1758130033322,1.41736962,4479.2,4479.1,0.5283]
[1758130033727,1.19236962,4479.2,4479.1,0.5283]
[1758130034023,0.6474,4479.2,4479.1,0.7425]
[1758130034222,0.2142,4479.2,4479.1,0.7425]
[1758130034526,0.6544,4479.6,4479.5,0.6557]
[1758130034727,0.4224,4479.6,4479.5,0.6557]
[1758130034922,0.6474,4479.6,4479.5,0.8699]
[1758130035128,0.8794,4479.6,4479.5,0.3147]
[1758130035428,0.6544,4479.1,4479.0,0.3147]
[1758130035627,0.8794,4479.1,4479.0,0.3147]
[1758130036221,0.8794,4479.1,4479.0,0.6557]
[1758130037527,0.6474,4479.1,4479.0,0.8699]
[1758130039221,0.8794,4479.1,4479.0,0.8699]